bitfinex-derivatives/quotes_SOLF0:USTF0_20260108
["timestamp","ask_amount","ask_price","bid_price","bid_amount"]
[1767870257619,0.78557259,135.25,135.18,9.00248183]
[1767870257819,0.78557259,135.25,135.18,2.33628183]
[1767870258015,7.44737259,135.27,135.2,6.6653]
[1767870259922,0.78557259,135.26,135.2,6.6653]
[1767870261322,0.78557259,135.26,135.2,9.00158183]
[1767870262624,6.6612,135.29,135.23,6.6638]
[1767870262814,6.6612,135.29,135.22,2.33628183]
[1767870263215,6.6612,135.29,135.22,9.00058183]
[1767870264721,7.44677259,135.29,135.22,9.00058183]
[1767870266618,6.6613,135.28,135.22,9.00058183]
[1767870266923,6.6613,135.28,135.22,6.6643]
[1767870267812,6.6619,135.27,135.21,2.33628183]
[1767870268829,7.44697259,135.28,135.21,6.6648]
[1767870271025,6.6623,135.27,135.2,2.33628183]
[1767870271215,0.78557259,135.25,135.17,2.33628183]
[1767870271522,0.78557259,135.25,135.14,6.82265782]
[1767870271719,6.664,135.23,135.17,6.6667]
[1767870272222,0.78557259,135.25,135.18,6.6662]
[1767870272521,0.78557259,135.25,135.17,2.33628183]
[1767870272715,0.75927801,135.24,135.17,2.33628183]
[1767870273612,7.42257801,135.24,135.17,2.33628183]
[1767870274325,7.42257801,135.24,135.17,9.00258183]
[1767870279028,0.75927801,135.27,135.2,2.33628183]
[1767870280530,6.6629,135.25,135.2,2.33628183]
[1767870280730,7.42217801,135.25,135.18,2.33628183]
[1767870280920,0.75927801,135.24,135.18,2.33628183]
[1767870281714,7.42257801,135.24,135.18,9.00248183]
[1767870281918,103.6166,135.29,135.2,2.33628183]
[1767870281919,0.75927801,135.26,135.2,2.33628183]
[1767870282219,0.75927801,135.29,135.22,2.33628183]
[1767870282821,0.75927801,135.29,135.19,6.82265782]
[1767870283022,0.75927801,135.29,135.22,2.33628183]
[1767870283528,6.6619,135.27,135.22,2.33628183]
[1767870284625,7.42177801,135.26,135.19,15.82443965]
[1767870284832,7.42177801,135.26,135.19,2.33628183]
[1767870285338,6.6629,135.25,135.18,13.48845782]
[1767870285532,6.6629,135.25,135.19,2.33628183]
[1767870286035,6.6634,135.24,135.18,6.6658]
[1767870286232,6.6634,135.24,135.19,2.33628183]
[1767870289337,7.42217801,135.25,135.19,2.33628183]
[1767870289634,0.75927801,135.24,135.19,2.33628183]
[1767870290027,0.75927801,135.23,135.18,2.33628183]
[1767870290829,0.75927801,135.18,135.13,3.471e-05]
[1767870291035,88.17927801,135.21,135.13,2.33628183]
[1767870291229,0.75927801,135.21,135.13,2.33628183]
[1767870291538,7.42437801,135.21,135.13,2.33628183]
[1767870292039,6.6654,135.2,135.13,2.33628183]
[1767870293137,7.42467801,135.2,135.13,2.33628183]
[1767870293740,7.42467801,135.2,135.12,6.6691]
[1767870293939,7.42467801,135.2,135.14,2.33628183]
[1767870294832,6.6658,135.19,135.14,2.33628183]
[1767870302149,6.6658,135.19,135.13,2.33628183]
[1767870302336,7.47712553,135.19,135.13,2.33628183]
[1767870302540,0.81132553,135.18,135.09,87.42]
[1767870302834,0.81132553,135.17,135.09,87.42]
[1767870303137,6.6683,135.14,135.09,89.75628183]
[1767870303441,6.6683,135.14,135.09,2.33628183]
[1767870306143,7.44721,135.14,135.07,6.6715]
[1767870306445,0.77891,135.13,135.08,2.33628183]
[1767870307241,0.77891,135.11,135.03,1.28681569]
[1767870307449,0.77891,135.11,135.04,2.33628183]
[1767870308648,0.77891,135.11,135.03,3.62309752]
[1767870309350,0.77891,135.11,135.03,10.29659752]
[1767870310549,0.77891,135.09,135.03,1.28681569]
[1767870310745,0.77891,135.09,135.02,2.33628183]
[1767870311545,6.6713,135.08,135.02,2.33628183]
[1767870312042,0.77891,135.07,135.0,6.6749]
[1767870312239,7.45061,135.07,135.0,9.01118183]
[1767870313249,7.45061,135.07,135.0,6.6749]
[1767870313554,7.45061,135.07,134.99,2.33628183]
[1767870313755,0.77891,135.05,134.98,1.28869797]
[1767870315549,0.77891,135.05,134.98,7.96479797]
[1767870319143,7.45161,135.05,134.98,6.6761]
[1767870319654,0.77891,135.04,134.97,87.48]
[1767870321655,0.77891,135.04,134.98,6.6761]
[1767870323159,0.77891,135.04,134.97,87.48]
[1767870323365,7.45221,135.04,134.94,25.91152783]
[1767870323655,0.77891,135.03,134.95,6.6771]
[1767870323860,0.77891,135.03,134.95,7.96620374]
[1767870324360,7.45311,135.02,134.95,7.96620374]
[1767870325659,0.77891,135.02,134.95,7.96620374]
[1767870327259,0.77891,135.01,134.93,87.52]
[1767870327559,0.77891,135.01,134.93,88.80919925]
[1767870328660,7.45361,135.01,134.94,6.6781]
[1767870329157,7.45361,135.01,134.93,88.80919925]
[1767870329362,0.77891,134.99,134.89,3.66152783]
[1767870329861,0.77891,134.99,134.89,4.95108538]
[1767870330560,7.45511,134.98,134.91,6.6792]
[1767870331365,0.77891,134.98,134.91,6.6792]
[1767870331658,0.77891,134.98,134.89,4.95108538]
[1767870331861,0.77891,134.98,134.92,6.679]
[1767870333368,7.45511,134.98,134.9,6.6796]
[1767870333665,0.82367803,134.97,134.9,6.6796]
[1767870333853,0.82367803,134.97,134.89,7.96985755]
[1767870334057,7.50087803,134.96,134.89,6.6803]
[1767870334874,0.82367803,134.96,134.9,6.68]
[1767870338167,0.82367803,134.96,134.87,108.70381291]
[1767870338660,7.50077803,134.96,134.89,6.6806]
[1767870339061,0.82367803,134.95,134.89,6.6806]
[1767870341578,0.82367803,134.95,134.87,108.70381291]
[1767870341579,0.82367803,134.95,134.87,103.75263195]
[1767870341770,0.82367803,134.95,134.87,16.21263195]
[1767870342683,7.50247803,134.93,134.87,16.21263195]
[1767870342883,0.82367803,134.92,134.87,16.21263195]
[1767870343687,7.50197803,134.94,134.87,16.21263195]
[1767870343868,0.82367803,134.93,134.87,16.21263195]
[1767870344274,7.50237803,134.93,134.87,16.21263195]
[1767870344474,0.82367803,134.92,134.87,16.21263195]
[1767870345788,7.50277803,134.92,134.87,16.21263195]
[1767870345990,0.82367803,134.92,134.87,16.21263195]
[1767870346285,7.50277803,134.92,134.87,16.21263195]
[1767870346485,0.82367803,134.91,134.87,16.21263195]
[1767870348491,0.82367803,134.9,134.83,6.6833]
[1767870349581,7.50377803,134.9,134.83,6.6833]
[1767870349977,0.82367803,134.9,134.84,6.683]
[1767870350382,0.82367803,134.9,134.79,103.9954]
[1767870350581,0.82367803,134.9,134.8,103.9877]
[1767870350787,0.82367803,134.9,134.81,3.66152783]
[1767870350978,0.82367803,134.9,134.82,6.6837]
[1767870351177,0.82367803,134.9,134.77,107.67142783]
[1767870351682,0.82367803,134.86,134.75,104.0252]
[1767870351889,0.82367803,134.86,134.76,3.66152783]
[1767870352082,0.82367803,134.86,134.77,6.6863]
[1767870353289,7.23902179,134.85,134.77,6.6863]
[1767870353493,6.41534376,134.84,134.77,6.6863]
[1767870353681,0.82367803,134.85,134.77,6.6863]
[1767870353984,6.41534164,134.84,134.77,6.6863]
[1767870354188,0.82367803,134.85,134.77,6.6863]
[1767870354391,6.41368008,134.84,134.77,6.6863]
[1767870354593,0.82367803,134.85,134.77,6.6863]
[1767870354779,6.41368008,134.84,134.77,6.6863]
[1767870354979,0.82367803,134.85,134.77,6.6863]
[1767870355182,6.41290489,134.84,134.77,6.6863]
[1767870355391,0.82367803,134.85,134.77,6.6863]
[1767870355590,6.41175283,134.84,134.78,6.6858]
[1767870355798,0.82367803,134.92,134.82,3.66152783]
[1767870356096,0.82367803,134.92,134.84,6.6829]
[1767870356297,6.6784,134.94,134.84,91.30152783]
[1767870356499,0.82367803,134.94,134.84,91.30152783]
[1767870356685,0.82367803,134.94,134.87,6.6814]
[1767870359183,0.82367803,134.95,134.85,103.9517]
[1767870359393,0.82367803,134.95,134.85,107.61322783]
[1767870360586,0.82367803,134.95,134.87,6.6812]
[1767870362586,7.50137803,134.95,134.87,6.6812]
[1767870364192,0.87377762,134.94,134.87,6.6812]
[1767870364497,0.87377762,134.94,134.88,6.681]
[1767870365799,7.55077762,134.97,134.89,6.6805]
[1767870365988,0.87377762,134.97,134.89,6.6805]
[1767870367602,6.6772,134.96,134.89,6.6805]
[1767870367799,6.11114841,134.95,134.9,6.6801]
[1767870367991,0.87377762,134.97,134.9,6.6801]
[1767870368302,6.11071993,134.96,134.9,6.6801]
[1767870368604,6.11071993,134.95,134.9,6.6801]
[1767870368899,6.11071993,134.94,134.9,6.6801]
[1767870369104,0.87377762,134.97,134.9,6.6801]
[1767870369308,6.11678613,134.96,134.9,6.6801]
[1767870369601,6.11678613,134.95,134.9,6.6801]
[1767870369799,6.11678613,134.94,134.9,6.6801]
[1767870370002,0.87377762,134.97,134.9,10.34162783]
[1767870370198,6.11719018,134.96,134.9,10.34162783]
[1767870370502,6.11719018,134.95,134.9,10.34162783]
[1767870370798,6.11719018,134.94,134.9,10.34162783]
[1767870371005,0.87377762,134.97,134.9,10.34162783]
[1767870371206,6.11947032,134.96,134.9,10.34162783]
[1767870371390,6.11947032,134.95,134.9,10.34162783]
[1767870371594,6.11947032,134.94,134.9,10.34162783]
[1767870371794,0.87377762,134.97,134.9,3.66152783]
[1767870372006,0.87377762,135.0,134.92,3.66152783]
[1767870372204,5.88217938,134.99,134.92,3.66152783]
[1767870372403,5.88217938,134.98,134.93,6.6785]
[1767870372599,0.87377762,134.99,134.93,6.6785]
[1767870374105,0.87377762,134.99,134.94,6.6781]
[1767870374602,0.87377762,134.99,134.94,9.0231323]
[1767870376392,0.87377762,134.99,134.94,6.6781]
[1767870378908,0.87377762,135.0,134.94,9.0231323]
[1767870380106,0.87377762,135.0,134.94,6.6781]
[1767870380605,7.54907762,135.0,134.94,6.6781]
[1767870381001,0.87377762,135.01,134.95,9.0226323]
[1767870381208,0.44649,135.02,134.93,103.8852]
[1767870381399,0.44649,135.02,134.97,2.3450323]
[1767870381600,0.44649,135.02,134.97,9.0216323]
[1767870381908,9e-05,135.02,134.99,2.3450323]
[1767870383199,0.87377762,135.05,134.99,9.0206323]
[1767870384098,7.54657762,135.05,134.99,9.0206323]
[1767870384602,7.54657762,135.05,134.99,6.6756]
[1767870384802,7.54657762,135.05,134.98,2.3450323]
[1767870385710,0.87377762,135.05,134.98,2.3450323]
[1767870386909,7.54647762,135.05,134.98,2.3450323]
[1767870388007,0.87377762,135.04,134.95,191.4713]
[1767870388313,7.54767762,135.03,134.95,89.9450323]
[1767870388808,0.87377762,135.0,134.89,110.73533016]
[1767870389109,0.87377762,134.99,134.91,2.3450323]
[1767870389710,3.21880992,135.03,134.95,2.3450323]
[1767870390306,0.87377762,135.03,134.95,2.3450323]
[1767870391020,7.54747762,135.03,134.95,2.3450323]
[1767870391814,7.54807762,135.02,134.93,87.58]
[1767870392014,0.87377762,135.01,134.93,87.58]
[1767870392210,0.87377762,135.01,134.93,89.9250323]
[1767870393613,0.87377762,135.01,134.95,6.6775]
[1767870394719,0.94348994,134.99,134.9,191.4899]
[1767870394912,0.94348994,134.99,134.92,2.3450323]
[1767870395615,0.94348994,134.99,134.93,6.6785]
[1767870398416,0.94348994,134.98,134.9,87.58]
[1767870398620,0.94348994,134.97,134.9,87.58]
[1767870400213,7.62018994,134.97,134.9,87.58]
[1767870401321,0.94348994,134.97,134.9,89.9250323]
[1767870402023,0.94348994,134.96,134.91,6.6796]
[1767870402226,6.6766,134.97,134.91,6.6796]
[1767870403120,6.6766,134.97,134.9,89.9250323]
[1767870403723,6.6766,134.97,134.9,96.6049323]
[1767870404423,6.6766,134.97,134.9,87.58]
[1767870404728,6.6773,134.96,134.88,9.0257323]
[1767870405631,6.6773,134.96,134.88,6.6807]
[1767870406223,3.28852224,134.97,134.88,6.6807]
[1767870406421,3.28852224,134.97,134.89,2.3450323]
[1767870406627,0.94348994,134.97,134.89,2.3450323]
[1767870407332,6.6771,134.96,134.89,2.3450323]
[1767870407739,7.62058994,134.96,134.88,6.6807]
[1767870408032,7.62058994,134.96,134.89,2.3450323]
[1767870408917,7.62058994,134.96,134.89,6.6806]
[1767870409229,6.6771,134.96,134.9,2.3450323]
[1767870411033,6.6771,134.96,134.89,6.6806]
[1767870411231,6.6771,134.96,134.89,9.0256323]
[1767870412625,6.6776,134.95,134.89,2.3450323]
[1767870412824,7.62108994,134.95,134.89,2.3450323]
[1767870413027,7.62108994,134.95,134.87,87.6]
[1767870413226,7.62108994,134.95,134.88,2.3450323]
[1767870414630,7.62108994,134.95,134.88,9.0261323]
[1767870415528,7.62108994,134.95,134.89,6.6805]
[1767870416330,0.94348994,134.95,134.9,2.3450323]
[1767870417530,6.6771,134.97,134.9,2.3450323]
[1767870417933,7.62058994,134.97,134.9,2.3450323]
[1767870418533,7.62058994,134.97,134.91,6.6796]
[1767870419032,7.62068994,134.96,134.89,2.3450323]
[1767870420425,0.94348994,134.94,134.89,2.3450323]
[1767870420635,0.94348994,134.94,134.87,89.9450323]
[1767870421242,0.94348994,134.93,134.86,2.3450323]
[1767870421539,0.94348994,134.93,134.85,2.3450323]
[1767870421721,0.94348994,134.93,134.87,2.3450323]
[1767870422632,7.62208994,134.93,134.87,9.0266323]
[1767870423942,7.62208994,134.93,134.87,6.6816]
[1767870424243,0.97061971,134.92,134.86,9.0270323]
[1767870425239,7.64981971,134.92,134.86,2.3450323]
[1767870426029,0.97061971,134.9,134.83,2.3450323]
[1767870427745,6.6806,134.89,134.83,2.3450323]
[1767870430248,0.97061971,134.92,134.85,2.3450323]
[1767870430837,0.97061971,134.92,134.82,6.81843016]
[1767870431040,0.97061971,134.92,134.81,191.598]
[1767870431041,0.97061971,134.92,134.84,2.3450323]
[1767870431650,7.64981971,134.92,134.85,6.6825]
[1767870431943,7.64981971,134.92,134.86,2.3450323]
[1767870434146,0.97061971,134.92,134.86,2.3450323]
[1767870434538,0.97061971,134.92,134.85,6.6825]
[1767870435540,7.64981971,134.92,134.85,6.6825]
[1767870438154,0.97061971,134.91,134.85,6.6825]
[1767870438651,7.65031971,134.91,134.84,6.6831]
[1767870439054,0.97061971,134.89,134.82,6.6836]
[1767870439449,0.97061971,134.89,134.81,87.62]
[1767870440651,0.97061971,134.87,134.79,6.81843016]
[1767870440852,0.97061971,134.87,134.78,94.45843016]
[1767870441054,0.97061971,134.87,134.78,87.64]
[1767870442643,7.65331971,134.85,134.78,94.3258]
[1767870443041,0.97061971,134.85,134.78,87.64]
[1767870443250,0.97061971,134.85,134.79,6.6855]
[1767870446453,0.97061971,134.85,134.78,94.326]
[1767870450563,0.97061971,134.85,134.79,6.6855]
[1767870452765,103.9011,134.92,134.79,6.6855]
[1767870452766,1.03986087,134.94,134.83,3.66839805]
[1767870453062,1.03986087,134.94,134.85,3.66839805]
[1767870453668,7.71946087,134.91,134.84,87.66]
[1767870454666,7.71946087,134.91,134.84,94.3428]
[1767870457873,6.6802,134.9,134.84,87.66]
[1767870460868,1.03986087,134.91,134.84,87.66]
[1767870461678,7.71946087,134.91,134.85,6.6826]
[1767870461882,7.71946087,134.91,134.84,87.66]
[1767870463682,7.71946087,134.91,134.84,94.343]
[1767870464679,7.71996087,134.9,134.83,3.66839805]
[1767870464980,7.71996087,134.9,134.81,98.14682821]
[1767870466777,7.71996087,134.9,134.83,6.6836]
[1767870467877,6.6808,134.89,134.83,10.35199805]
[1767870468482,1.03986087,134.9,134.83,10.35199805]
[1767870468780,7.71996087,134.9,134.84,6.6831]
[1767870472493,1.03986087,134.9,134.84,6.6831]
[1767870477390,1.03986087,134.9,134.85,6.6825]
[1767870478685,7.71896087,134.92,134.86,6.6819]
[1767870480680,6.6796,134.91,134.86,6.6819]
[1767870482091,1.03986087,134.92,134.85,6.6825]
[1767870482787,1.04759137,134.9,134.81,94.47843016]
[1767870482981,3.66839805,134.89,134.79,6.81843016]
[1767870483281,6.6827,134.85,134.79,6.6854]
[1767870483485,1.04759137,134.86,134.79,6.6854]
[1767870484584,7.76229319,134.85,134.78,6.686]
[1767870485792,1.07959319,134.84,134.78,6.686]
[1767870486796,1.07959319,134.83,134.73,9.05667363]
[1767870487087,1.07959319,134.83,134.74,3.66839805]
[1767870488293,1.07959319,134.83,134.71,200.77247363]
[1767870488591,7.76369319,134.82,134.74,10.35639805]
[1767870490693,7.76369319,134.82,134.74,6.688]
[1767870490888,1.07959319,134.81,134.74,6.688]
[1767870491289,6.6841,134.82,134.74,6.688]
[1767870494299,1.07959319,134.83,134.75,6.6874]
[1767870495700,7.76319319,134.83,134.75,6.6874]
[1767870495896,1.07959319,134.85,134.74,107.70389805]
[1767870496101,1.07959319,134.85,134.76,3.66839805]
[1767870496504,1.07959319,134.85,134.78,2.3502855]
[1767870497299,7.76259319,134.85,134.78,2.3502855]
[1767870498099,7.76259319,134.85,134.78,9.0362855]
[1767870498304,1.07959319,134.84,134.78,6.686]
[1767870503103,1.07959319,134.84,134.79,2.3502855]
[1767870504203,1.07959319,134.84,134.78,9.0362855]
[1767870504396,1.07959319,134.84,134.76,9.0369855]
[1767870504597,7.76269319,134.84,134.76,9.0369855]
[1767870505004,7.76269319,134.84,134.77,6.6863]
[1767870505207,1.07959319,134.83,134.77,6.6863]
[1767870505405,7.76319319,134.83,134.76,2.3502855]
[1767870505599,7.76319319,134.83,134.74,2.3502855]
[1767870506307,7.76319319,134.83,134.73,104.0444]
[1767870506507,1.07959319,134.82,134.73,104.0444]
[1767870506714,1.07959319,134.82,134.76,6.6869]
[1767870507209,7.76379319,134.82,134.74,9.0378855]
[1767870510416,7.76379319,134.82,134.74,6.6876]
[1767870510717,1.07959319,134.8,134.73,2.3502855]
[1767870511615,1.07959319,134.8,134.74,6.688]
[1767870515518,1.07959319,134.8,134.72,6.6885]
[1767870515713,1.07959319,134.8,134.72,9.0387855]
[1767870516011,1.07959319,134.8,134.72,2.3502855]
[1767870517507,6.6856,134.79,134.72,9.0390855]
[1767870518917,7.74873223,134.79,134.72,9.0390855]
[1767870519124,7.74873223,134.79,134.73,2.3502855]
[1767870521735,7.74873223,134.79,134.72,6.6888]
[1767870521939,7.74873223,134.79,134.72,9.0390855]
[1767870524443,7.74873223,134.79,134.72,6.6888]
[1767870524640,7.74873223,134.79,134.72,9.0390855]
[1767870525441,1.06313223,134.78,134.73,6.6883]
[1767870525740,1.06313223,134.78,134.72,2.3502855]
[1767870526241,7.74923223,134.78,134.72,9.0391855]
[1767870528043,1.06313223,134.78,134.72,9.0391855]
[1767870528548,1.06313223,134.78,134.74,6.688]
[1767870529544,1.06313223,134.8,134.75,6.6875]
[1767870537351,1.06313223,134.8,134.74,9.0382855]
[1767870539253,7.74823223,134.8,134.74,9.0382855]
[1767870540255,7.74773223,134.81,134.75,6.6875]
[1767870540449,1.06313223,134.8,134.71,96.71667363]
[1767870540651,1.06313223,134.8,134.7,99.12695913]
[1767870540855,7.74863223,134.8,134.73,6.6885]
[1767870541958,6.6856,134.79,134.73,6.6885]
[1767870542162,6.6856,134.79,134.72,2.3502855]
[1767870544157,7.80819904,134.79,134.72,2.3502855]
[1767870544659,7.80819904,134.79,134.72,6.6889]
[1767870547451,7.80819904,134.79,134.73,6.6885]
[1767870547657,1.12259904,134.79,134.73,6.6885]
[1767870552770,7.80719904,134.81,134.74,6.688]
[1767870553073,1.12259904,134.83,134.77,2.3502855]
[1767870554069,1.12259904,134.83,134.77,9.0365855]
[1767870554460,1.12259904,134.83,134.76,6.94399315]
[1767870554963,1.12259904,134.82,134.76,13.63099315]
[1767870556467,7.80679904,134.82,134.76,13.63099315]
[1767870557272,7.80679904,134.82,134.76,6.94399315]
[1767870562481,7.80679904,134.82,134.75,13.63149315]
[1767870562668,7.80679904,134.82,134.76,6.94399315]
[1767870563276,7.80679904,134.82,134.75,13.63149315]
[1767870563770,7.80679904,134.82,134.76,6.94399315]
[1767870565280,7.80719904,134.81,134.76,6.94399315]
[1767870565478,7.80719904,134.81,134.75,6.94399315]
[1767870566579,7.80719904,134.81,134.75,13.63149315]
[1767870569472,7.80719904,134.81,134.75,6.94399315]
[1767870570488,103.9547,134.85,134.74,6.94399315]
[1767870570489,1.12259904,134.79,134.74,6.94399315]
[1767870570675,1.12259904,134.79,134.73,6.94399315]
[1767870571380,1.12259904,134.78,134.73,6.94399315]
[1767870571584,1.12259904,134.78,134.72,6.94399315]
[1767870572382,1.12259904,134.78,134.71,6.94399315]
[1767870572684,7.80869904,134.78,134.71,6.94399315]
[1767870572879,7.80869904,134.78,134.72,6.94399315]
[1767870573383,7.80869904,134.78,134.71,6.94399315]
[1767870573681,7.80869904,134.78,134.72,6.6889]
[1767870575075,1.12750156,134.77,134.72,6.6889]
[1767870575275,1.12750156,134.77,134.71,6.94399315]
[1767870576386,7.81410156,134.77,134.71,13.63349315]
[1767870577287,1.12750156,134.77,134.71,13.63349315]
[1767870581891,6.6861,134.78,134.72,6.689]
[1767870582093,7.81360156,134.78,134.72,6.689]
[1767870582689,7.81360156,134.78,134.71,13.63212573]
[1767870587600,6.6861,134.78,134.71,13.63212573]
[1767870587795,6.6861,134.78,134.71,6.6895]
[1767870590300,7.81360156,134.78,134.71,6.6895]
[1767870592498,7.81360156,134.78,134.72,6.6889]
[1767870594703,6.6866,134.77,134.71,6.6894]
[1767870596603,7.81360156,134.78,134.71,6.6894]
[1767870600111,7.81360156,134.78,134.72,6.689]
[1767870601601,1.12750156,134.76,134.7,94.66262573]
[1767870601910,1.12750156,134.76,134.7,87.72]
[1767870602707,1.12750156,134.76,134.7,94.41]
[1767870604514,1.12750156,134.76,134.71,6.6895]
[1767870604706,1.07656775,134.78,134.71,6.6895]
[1767870604911,1.07656775,134.78,134.71,13.63212573]
[1767870606713,7.76256775,134.78,134.71,13.63212573]
[1767870607107,1.07656775,134.78,134.72,6.6889]
[1767870609115,1.07656775,134.78,134.72,13.63152573]
[1767870609310,7.76266775,134.78,134.72,6.94262573]
[1767870617224,6.6867,134.77,134.72,6.94262573]
[1767870618223,6.6871,134.76,134.72,6.94262573]
[1767870618723,7.76316775,134.77,134.72,6.94262573]
[1767870619324,7.76316775,134.77,134.72,9.29610438]
[1767870619617,191.7254,134.81,134.72,9.29610438]
[1767870619618,6.6861,134.78,134.72,9.29610438]
[1767870619822,1.07656775,134.79,134.72,9.29610438]
[1767870620019,1.07656775,134.82,134.74,9.29610438]
[1767870620220,1.07656775,134.82,134.75,6.94262573]
[1767870620412,1.07656775,134.82,134.76,2.35347865]
[1767870620615,1.07656775,134.82,134.76,9.29610438]
[1767870621513,6.684,134.83,134.76,15.98300438]
[1767870621719,1.07656775,134.86,134.78,2.35347865]
[1767870621915,1.07656775,134.86,134.78,9.29610438]
[1767870622116,6.6831,134.84,134.78,9.29610438]
[1767870622322,6.6831,134.84,134.78,2.35347865]
[1767870623827,1.07656775,134.85,134.78,2.35347865]
[1767870624728,7.75916775,134.85,134.78,2.35347865]
[1767870624929,2.35347865,134.88,134.78,2.35347865]
[1767870625127,1.07656775,134.89,134.84,2.35347865]
[1767870626332,1.07656775,134.89,134.82,6.684]
[1767870626632,1.07656775,134.89,134.84,2.35347865]
[1767870632927,1.07656775,134.89,134.8,191.707]
[1767870633128,1.07656775,134.89,134.83,2.35347865]
[1767870633324,1.03628945,134.86,134.79,6.6852]
[1767870634429,1.03628945,134.86,134.8,9.03837865]
[1767870635035,1.03628945,134.86,134.8,6.6849]
[1767870635237,1.03628945,134.86,134.8,9.03837865]
[1767870641943,1.03628945,134.88,134.82,2.35347865]
[1767870643339,1.03628945,134.88,134.83,6.6835]
[1767870644245,1.03628945,134.9,134.83,6.6835]
[1767870644544,7.71658945,134.9,134.83,6.6835]
[1767870645645,1.03628945,134.89,134.83,6.6835]
[1767870648746,6.6803,134.9,134.83,6.6835]
[1767870649344,6.6807,134.89,134.83,6.6835]
[1767870652453,7.71698945,134.89,134.83,6.6835]
[1767870652648,7.71748945,134.88,134.82,9.03757865]
[1767870654050,7.71748945,134.88,134.82,2.35347865]
[1767870654850,7.71748945,134.88,134.82,9.03747865]
[1767870657151,7.71748945,134.88,134.82,2.35347865]
[1767870657449,7.71788945,134.87,134.8,2.35347865]
[1767870658561,7.71788945,134.87,134.81,6.6846]
[1767870658956,1.03628945,134.87,134.81,6.6846]
[1767870662857,7.71788945,134.87,134.81,6.6846]
[1767870663360,1.03379527,134.85,134.8,6.685]
[1767870663563,1.03379527,134.85,134.78,9.29610438]
[1767870664367,1.03379527,134.85,134.79,6.94262573]
[1767870664667,1.03379527,134.85,134.79,13.62792573]
[1767870665362,1.03379527,134.85,134.8,6.685]
[1767870665668,1.03379527,134.85,134.79,6.94262573]
[1767870665669,1.06281995,134.87,134.82,2.35347865]
[1767870666559,1.06281995,134.87,134.82,9.03747865]
[1767870667164,1.06281995,134.9,134.83,6.6836]
[1767870668256,1.06281995,134.88,134.82,13.62662573]
[1767870669768,1.06281995,134.88,134.82,15.98010438]
[1767870673169,7.74391995,134.88,134.82,15.98010438]
[1767870673472,1.06281995,134.88,134.82,6.94262573]
[1767870673673,1.06281995,134.88,134.81,6.94262573]
[1767870674675,6.6822,134.86,134.81,6.94262573]
[1767870675975,6.6816,134.87,134.81,6.94262573]
[1767870676470,6.6816,134.87,134.81,9.29610438]
[1767870676675,6.6816,134.87,134.82,6.94262573]
[1767870678071,1.06281995,134.88,134.83,6.94262573]
[1767870680680,7.74391995,134.88,134.83,6.94262573]
[1767870681878,7.74441995,134.87,134.82,6.94262573]
[1767870686078,6.6816,134.87,134.82,6.94262573]
[1767870686473,7.74391995,134.89,134.83,6.94262573]
[1767870687381,7.74261995,134.91,134.85,6.94262573]
[1767870688382,6.6801,134.9,134.85,6.94262573]
[1767870688572,7.74291995,134.9,134.85,6.94262573]
[1767870689383,1.06281995,134.9,134.85,6.94262573]
[1767870691183,1.06281995,134.9,134.84,13.62562573]
[1767870694788,1.0395128,134.92,134.84,6.94262573]
[1767870694987,1.0395128,134.92,134.85,6.94262573]
[1767870697592,6.6797,134.91,134.85,6.94262573]
[1767870698291,6.6797,134.91,134.84,13.62522573]
[1767870702599,7.7196128,134.9,134.84,13.62522573]
[1767870702794,7.7196128,134.9,134.84,6.6826]
[1767870703901,7.7196128,134.9,134.84,13.62522573]
[1767870704301,1.0395128,134.9,134.84,13.62522573]
[1767870704699,6.6795,134.92,134.84,13.62522573]
[1767870704700,7.7190128,134.92,134.84,13.62522573]
[1767870706394,7.7190128,134.92,134.85,6.6826]
[1767870707102,7.7190128,134.92,134.86,6.682]
[1767870707498,1.0395128,134.92,134.86,6.682]
[1767870714308,7.7187128,134.92,134.86,6.682]
[1767870716110,1.0395128,134.91,134.85,13.62522573]
[1767870716310,7.7192128,134.91,134.85,13.62522573]
[1767870718305,7.7192128,134.91,134.85,6.94262573]
[1767870718811,7.7192128,134.91,134.84,13.62572573]
[1767870720206,1.0395128,134.9,134.85,6.94262573]
[1767870720412,1.0395128,134.9,134.85,13.62522573]
[1767870723017,7.7196128,134.9,134.83,101.28572573]
[1767870723616,7.7196128,134.9,134.84,6.683]
[1767870727617,7.7196128,134.9,134.84,13.62562573]
[1767870729019,7.7196128,134.9,134.84,6.683]
[1767870729221,7.7196128,134.9,134.84,13.61949625]
[1767870729519,1.0395128,134.9,134.84,13.61949625]
[1767870731932,7.7197128,134.9,134.84,13.61949625]
[1767870732131,1.04629657,134.89,134.83,6.93649625]